bitfinex/quotes_SOLUSD_20250819
["timestamp","ask_amount","ask_price","bid_price","bid_amount"]
[1755610142022,13.59559401,182.98,182.96,6.93655012]
[1755610142171,13.59559401,182.98,182.97,7.60655012]
[1755610142518,13.59559401,182.98,182.97,5.46537683]
[1755610142880,13.59559401,182.98,182.96,5.46563804]
[1755610145079,13.59559401,182.98,182.96,6.13563804]
[1755610145502,13.59559401,182.98,182.96,5.46563804]
[1755610147016,0.61,183.0,182.96,5.46563804]
[1755610147217,38.62,182.99,182.96,5.46563804]
[1755610147710,38.62,182.99,182.96,6.13563804]
[1755610147894,38.62,182.99,182.96,13.07218816]
[1755610148587,38.62,182.99,182.97,0.65]
[1755610149681,38.62,182.99,182.98,5.46507815]
[1755610154397,0.06,183.03,182.98,7.58655012]
[1755610154598,0.06,183.03,183.01,6.93655012]
[1755610154779,0.06,183.03,183.0,6.93655012]
[1755610154985,0.06,183.03,183.01,7.58655012]
[1755610155694,0.06,183.03,183.02,0.65]
[1755610156426,0.06,183.03,183.02,6.11388372]
[1755610156606,0.06,183.03,183.02,13.05043384]
[1755610158518,0.06,183.03,183.02,5.46388372]
[1755610159213,0.06,183.03,183.02,13.05043384]
[1755610161194,0.06,183.03,183.02,6.11388372]
[1755610161392,0.06,183.03,183.02,13.05043384]
[1755610161904,0.06,183.03,183.02,5.46388372]
[1755610163000,0.06,183.03,183.01,12.40066896]
[1755610163196,0.06,183.03,183.01,13.05066896]
[1755610164117,0.06,183.03,183.02,0.65]
[1755610164518,0.06,183.03,183.02,7.58655012]
[1755610164693,0.06,183.03,183.02,39.05043384]
[1755610166234,1e-08,183.03,183.02,39.05043384]
[1755610173724,1e-08,183.03,183.02,32.11388372]
[1755610173921,1e-08,183.03,183.02,38.40043384]
[1755610174727,1e-08,183.03,183.02,31.46388372]
[1755610175107,1e-08,183.03,183.0,0.65]
[1755610175108,0.61000001,183.03,183.0,5.46448087]
[1755610175315,1e-08,183.03,183.0,5.46448087]
[1755610175513,13.59559402,183.03,183.0,5.46448087]
[1755610175720,14.20559402,183.03,183.02,0.03]
[1755610176337,1e-08,183.03,183.02,0.03]
[1755610176837,0.61000001,183.03,183.02,0.03]
[1755610177406,1e-08,183.03,183.02,0.03]
[1755610179828,0.61000001,183.03,183.02,0.03]
[1755610180009,7.54655013,183.03,183.02,0.03]
[1755610180713,21.14214414,183.03,183.02,0.03]
[1755610184117,20.53214414,183.03,183.02,0.03]
[1755610184627,21.14214414,183.03,183.02,0.03]
[1755610185343,20.53214414,183.03,183.02,0.03]
[1755610185638,13.59559402,183.03,183.02,0.03]
[1755610185944,20.53214414,183.03,183.02,0.03]
[1755610186125,13.59559402,183.03,183.02,0.03]
[1755610187633,20.53214414,183.03,183.02,0.03]
[1755610187851,21.14214414,183.03,183.02,0.03]
[1755610188218,22.509925,183.03,183.02,0.03]
[1755610190015,21.899925,183.03,183.02,0.03]
[1755610191623,22.509925,183.03,183.02,0.03]
[1755610191843,27.9735102,183.03,183.02,0.03]
[1755610192340,22.509925,183.03,183.02,0.03]
[1755610193834,21.899925,183.03,183.02,0.03]
[1755610194837,1.36778087,183.03,183.02,0.03]
[1755610195043,1.36779708,183.03,183.02,0.03]
[1755610195641,1.36779697,183.03,183.02,0.03]
[1755610195843,38.62000001,183.03,183.02,0.73]
[1755610196347,39.98766376,183.03,183.02,0.73]
[1755610197551,39.98766376,183.03,183.02,6.19388372]
[1755610198020,1.36766376,183.03,183.02,13.13043384]
[1755610198228,1e-08,183.03,183.02,13.13043384]
[1755610199224,1e-08,183.03,183.02,6.19388372]
[1755610199428,1e-08,183.03,183.02,13.13043384]
[1755610201148,1e-08,183.03,183.02,6.19388372]
[1755610201353,1e-08,183.03,183.02,32.19388372]
[1755610201829,1e-08,183.03,183.02,39.13043384]
[1755610202030,1e-08,183.03,183.02,32.19388372]
[1755610202248,0.61000001,183.03,183.02,0.03]
[1755610202451,1e-08,183.03,183.02,0.03]
[1755610202840,59.80214414,183.03,183.02,0.03]
[1755610203154,64.84937764,183.03,183.02,0.03]
[1755610203464,39.59559401,183.01,183.0,0.03]
[1755610203630,51.57937763,183.01,183.0,0.03]
[1755610203829,90.85937763,183.01,183.0,0.03]
[1755610204039,90.85968722,183.01,183.0,0.03]
[1755610204243,96.3238695,183.01,183.0,0.03]
[1755610204441,13.59559401,183.0,182.98,0.03]
[1755610204762,30.17915755,182.99,182.98,0.03]
[1755610205063,26.15968722,182.99,182.98,0.03]
[1755610205652,18.6431371,182.99,182.98,0.03]
[1755610205851,40.08810185,182.99,182.98,0.73]
[1755610206042,38.72,182.99,182.98,0.73]
[1755610206564,38.72,182.99,182.98,6.19507815]
[1755610206856,38.74,183.02,182.98,13.13162827]
[1755610207061,38.74,183.02,182.99,0.7]
[1755610207226,38.74,183.02,182.99,7.63655012]
[1755610207429,38.74,183.02,183.01,6.93655012]
[1755610207658,1e-08,183.03,183.01,7.63655012]
[1755610207868,1e-08,183.03,183.02,6.93655012]
[1755610208029,1e-08,183.03,183.02,7.64655012]
[1755610208426,1e-08,183.03,183.02,13.11043384]
[1755610208631,1e-08,183.03,183.02,6.17388372]
[1755610208849,1e-08,183.03,183.02,0.71]
[1755610209845,1e-08,183.03,183.02,0.74]
[1755610210045,1e-08,183.03,183.02,7.67655012]
[1755610210432,1e-08,183.03,183.02,13.14043384]
[1755610211259,1e-08,183.03,183.02,6.20388372]
[1755610211467,1e-08,183.03,183.02,13.14043384]
[1755610212482,1e-08,183.03,183.02,39.14043384]
[1755610213700,1e-08,183.03,183.02,13.14043384]
[1755610214860,0.06,183.06,183.03,26.0]
[1755610215059,0.06,183.07,183.06,26.0]
[1755610215291,0.06,183.07,183.06,32.93655012]
[1755610215663,0.06,183.07,183.06,33.64655012]
[1755610216385,0.06,183.07,183.06,39.10923994]
[1755610216583,0.06,183.07,183.06,32.17268982]
[1755610216773,0.06,183.07,183.06,39.10923994]
[1755610217276,0.06,183.08,183.06,39.10923994]
[1755610217468,0.06,183.09,183.07,7.64655012]
[1755610217787,14.23559401,183.16,183.08,6.93655012]
[1755610218090,13.59559401,183.18,183.15,6.93655012]
[1755610218392,13.59559401,183.18,183.16,5.45970735]
[1755610219171,17.9018571,183.2,183.16,5.45970735]
[1755610219394,21.17214413,183.2,183.16,5.45970735]
[1755610220265,20.53214413,183.2,183.16,5.45970735]
[1755610220493,0.64,183.19,183.16,5.45970735]
[1755610220987,13.59559401,183.2,183.16,5.45970735]
[1755610221188,14.23559401,183.2,183.16,5.45970735]
[1755610221393,0.64,183.19,183.16,5.45970735]
[1755610221893,20.53214413,183.2,183.16,5.45970735]
[1755610222066,41.58831343,183.22,183.17,7.64655012]
[1755610222275,13.59559401,183.21,183.18,0.71]
[1755610222468,13.59559401,183.21,183.18,5.45911125]
[1755610223878,14.23559401,183.21,183.18,5.45911125]
[1755610224199,14.23559401,183.24,183.18,6.16911125]
[1755610224397,52.31559401,183.24,183.19,0.71]
[1755610224568,59.25214413,183.24,183.2,5.45851528]
[1755610224768,0.64,183.23,183.2,5.45851528]
[1755610225186,52.31559401,183.24,183.2,5.45851528]
[1755610225382,0.64,183.23,183.2,5.45851528]
[1755610225587,52.31559401,183.24,183.2,5.45851528]
[1755610225776,38.72,183.24,183.2,6.16851528]
[1755610226101,38.72,183.24,183.21,7.64655012]
[1755610226288,59.39214413,183.26,183.2,5.45851528]
[1755610226488,0.06,183.21,183.18,5.45911125]
[1755610226799,0.06,183.21,183.2,26.0]
[1755610226991,0.06,183.21,183.2,32.93655012]
[1755610227301,0.06,183.21,183.2,33.64655012]
[1755610227681,0.1,183.26,183.2,33.64655012]
[1755610227887,0.1,183.26,183.21,0.71]
[1755610228285,0.1,183.26,183.25,6.93655012]
[1755610228487,0.1,183.26,183.25,7.64655012]
[1755610228808,0.1,183.26,183.25,13.10357604]
[1755610229203,0.1,183.26,183.25,6.16702592]
[1755610229378,0.1,183.26,183.25,13.10357604]
[1755610229575,0.1,183.26,183.25,6.16702592]
[1755610229912,0.1,183.26,183.25,5.45702592]
[1755610230292,7.67655012,183.26,183.19,13.64664929]
[1755610230491,6.93655012,183.24,183.21,26.0]
[1755610230816,0.1,183.26,183.25,26.0]
[1755610232187,0.1,183.26,183.25,33.64655012]
[1755610232583,0.1,183.26,183.25,6.16702592]
[1755610232776,7.67655012,183.26,183.2,5.45851528]
[1755610233117,0.1,183.26,183.21,0.71]
[1755610233404,7.67655012,183.26,183.21,0.71]
[1755610233623,6.93655012,183.22,183.15,5.46000546]
[1755610233921,6.93655012,183.2,183.15,5.46000546]
[1755610234101,6.93655012,183.2,183.16,0.71]
[1755610234325,0.64,183.25,183.19,6.93655012]
[1755610234533,0.1,183.26,183.21,6.93655012]
[1755610234715,0.1,183.26,183.22,12.39446956]
[1755610235033,0.1,183.26,183.22,6.16791944]
[1755610235236,7.03655012,183.26,183.22,6.16791944]
[1755610235436,0.1,183.26,183.22,6.16791944]
[1755610235645,0.1,183.26,183.23,0.71]
[1755610236315,0.1,183.26,183.22,5.45791944]
[1755610236507,7.03655012,183.26,183.22,6.16791944]
[1755610236711,0.1,183.26,183.23,0.71]
[1755610237051,0.1,183.26,183.24,0.71]
[1755610237218,0.1,183.26,183.25,0.71]
[1755610237729,0.1,183.26,183.25,7.64655012]
[1755610238308,0.1,183.26,183.25,0.71]
[1755610238550,1e-08,183.27,183.25,72.68655012]
[1755610238708,13.59559401,183.39,183.29,26.0]
[1755610238903,6.93655012,183.37,183.3,0.7]
[1755610239107,0.64,183.4,183.31,6.93655012]
[1755610239302,39.36358201,183.41,183.32,0.7]
[1755610239716,0.96358201,183.41,183.32,0.7]
[1755610240041,0.32358201,183.41,183.32,26.7]
[1755610240358,0.32358201,183.41,183.36,11.36717658]
[1755610240650,0.32358201,183.41,183.4,5.4525627]
[1755610241006,0.32358201,183.41,183.4,16.81973928]
[1755610241347,0.32358201,183.41,183.4,6.1525627]
[1755610241556,0.32358201,183.41,183.4,5.4525627]
[1755610241763,0.32358201,183.41,183.4,6.1525627]
[1755610242068,0.32358201,183.41,183.37,13.63330879]
[1755610242069,11.69075859,183.41,183.37,0.7]
[1755610242222,0.64,183.4,183.35,26.0]
[1755610242423,0.32358201,183.41,183.36,0.7]
[1755610242725,0.32358201,183.41,183.38,11.36717658]
[1755610242922,0.32358201,183.41,183.37,6.15345476]
[1755610243138,11.69075859,183.41,183.35,17.52097952]
[1755610243337,0.32358201,183.41,183.4,37.36717658]
[1755610243560,0.32358201,183.41,183.4,38.06717658]
[1755610243785,0.32358201,183.41,183.4,0.7]
[1755610244067,0.32358201,183.41,183.37,0.7]
[1755610244219,0.32358201,183.41,183.35,32.15380294]
[1755610244421,11.36717658,183.38,183.32,11.36717658]
[1755610244654,0.96358201,183.41,183.34,31.45427623]
[1755610244862,0.32358201,183.41,183.4,11.36717658]
[1755610245350,0.1,183.45,183.4,38.06717658]
[1755610245535,0.1,183.45,183.44,11.36717658]
[1755610245738,0.1,183.45,183.44,12.06717658]
[1755610246421,1e-08,183.45,183.44,12.06717658]
[1755610246622,30.938,183.5,183.48,5.4501853]
[1755610246931,2.84249041,183.6,183.49,0.7]
[1755610247147,14.88966699,183.6,183.51,26.0]
[1755610247470,0.68,183.59,183.51,26.0]
[1755610247772,0.68,183.59,183.52,11.36717658]
[1755610247916,0.68,183.59,183.51,31.46947043]
[1755610248360,0.68,183.59,183.53,11.36717658]
[1755610248566,0.68,183.59,183.51,31.46947043]
[1755610248729,11.36717658,183.52,183.35,10.0]
[1755610248926,0.68,183.51,183.4,0.1]
[1755610249132,0.68,183.51,183.44,11.36717658]
[1755610249346,26.0,183.59,183.44,11.36717658]
[1755610249347,42.26,183.65,183.45,0.1]
[1755610249708,14.27559401,183.59,183.47,26.0]
[1755610249835,0.68,183.58,183.47,26.0]
[1755610250379,59.41559401,183.57,183.47,16.376886]
[1755610250542,59.41559401,183.57,183.42,11.36717658]
[1755610250543,11.36717658,183.48,183.42,11.36717658]
[1755610250740,11.36717658,183.47,183.42,16.379569]
[1755610250966,14.20966699,183.6,183.46,11.36717658]
[1755610251163,14.20966699,183.6,183.45,26.0]
[1755610251164,0.68,183.59,183.52,11.36717658]
[1755610251368,0.68,183.59,183.54,11.36717658]
[1755610251682,2.84249041,183.6,183.56,11.36717658]
[1755610251983,2.84249041,183.6,183.59,11.36717658]
[1755610252183,0.68,183.67,183.59,11.46717658]
[1755610252390,45.98,183.73,183.59,0.1]
[1755610252694,11.36717658,183.72,183.66,16.8118542]
[1755610252843,2.84043123,183.74,183.65,26.0]
[1755610252844,0.68,183.73,183.65,26.0]
[1755610253047,0.68,183.71,183.65,26.0]
[1755610253546,0.68,183.71,183.63,26.0]
[1755610253744,0.68,183.71,183.57,0.1]
[1755610254079,13.59559401,183.7,183.58,26.0]
[1755610254267,12.04717658,183.69,183.61,26.0]
[1755610254572,13.59559401,183.74,183.61,26.0]
[1755610254776,16.61397197,183.64,183.61,26.0]
[1755610254978,0.68,183.63,183.61,26.0]
[1755610255179,0.68,183.68,183.62,16.61397197]
[1755610255343,0.68,183.68,183.6,26.0]
[1755610255548,16.61397197,183.67,183.6,16.61397197]
[1755610255760,13.59559401,183.73,183.6,16.61397197]
[1755610255966,0.68,183.67,183.57,0.1]
[1755610256144,0.68,183.67,183.62,16.61397197]
[1755610256344,0.68,183.66,183.57,26.1]
[1755610256753,0.68,183.66,183.61,26.0]
[1755610256952,0.68,183.66,183.59,26.0]
[1755610257157,0.68,183.66,183.6,26.0]
[1755610257386,17.29397197,183.66,183.6,26.0]
[1755610257597,0.68,183.66,183.61,16.61397197]
[1755610257880,0.68,183.65,183.61,16.61397197]
[1755610258178,0.68,183.7,183.62,16.61397197]
[1755610258374,16.61397197,183.67,183.6,26.0]
[1755610258579,0.68,183.66,183.61,16.61397197]
[1755610258890,16.61397197,183.68,183.62,16.61397197]
[1755610259249,16.61397197,183.66,183.6,16.61397197]
[1755610259452,0.68,183.67,183.61,42.61397197]
[1755610259670,16.61397197,183.66,183.6,26.0]
[1755610259863,0.68,183.67,183.61,16.61397197]
[1755610260065,16.61397197,183.66,183.6,16.61397197]
[1755610260265,16.61397197,183.61,183.52,0.1]
[1755610260465,0.68,183.62,183.58,26.0]
[1755610260686,0.68,183.62,183.52,0.1]
[1755610260687,0.68,183.61,183.52,0.1]
[1755610260857,16.61397197,183.6,183.54,16.61397197]
[1755610261189,16.61397197,183.62,183.54,0.1]
[1755610261361,16.61397197,183.61,183.51,0.1]
[1755610261681,17.29397197,183.61,183.55,16.61397197]
[1755610261883,0.68,183.65,183.58,16.61397197]
[1755610262064,0.68,183.65,183.55,0.1]
[1755610262380,16.61397197,183.59,183.53,42.61397197]
[1755610262556,0.68,183.58,183.56,16.61397197]
[1755610262890,16.61397197,183.61,183.52,0.1]
[1755610263054,0.68,183.61,183.55,16.61397197]
[1755610263253,16.61397197,183.6,183.52,26.1]
[1755610263454,16.61397197,183.55,183.5,16.370631]
[1755610263669,16.61397197,183.51,183.44,0.03]
[1755610263872,0.68,183.54,183.44,0.03]
[1755610264160,16.61397197,183.46,183.44,0.03]
[1755610264368,0.68,183.45,183.44,0.03]
[1755610264775,17.29397197,183.45,183.44,0.03]
[1755610264980,22.74504855,183.45,183.4,0.03]
[1755610265171,14.27559401,183.44,183.4,0.03]
[1755610265599,16.61397197,183.41,183.4,0.03]
[1755610265771,16.61397197,183.41,183.38,0.03]
[1755610265977,13.59559401,183.38,183.24,16.394786]
[1755610266160,16.61397197,183.39,183.25,5.45702592]
[1755610266161,16.61397197,183.32,183.25,5.45702592]
[1755610266367,16.61397197,183.28,183.18,0.19]
[1755610266562,16.61397197,183.26,183.18,16.584786]
[1755610266763,16.61397197,183.22,183.17,5.45940929]
[1755610266986,17.29397197,183.21,183.15,5.48974681]
[1755610267177,16.61397197,183.2,183.15,0.03]
[1755610267361,0.68,183.21,183.15,0.03]
[1755610267558,0.68,183.21,183.18,16.61397197]
[1755610267762,0.68,183.21,183.15,5.489972]
[1755610268025,17.29397197,183.21,183.15,0.03]
[1755610268192,16.61397197,183.19,183.15,0.03]
[1755610268360,16.61397197,183.17,183.15,0.03]
[1755610268561,16.61397197,183.16,183.15,0.03]
[1755610268766,17.30397197,183.16,183.13,0.03]
[1755610269066,16.61397197,183.14,183.13,0.03]
[1755610269277,0.69,183.15,183.13,0.03]
[1755610269488,16.61397197,183.18,183.13,0.03]
[1755610269666,17.30397197,183.2,183.13,0.03]
[1755610269872,0.69,183.17,183.13,16.64397197]
[1755610270068,0.69,183.17,183.13,0.03]
[1755610270268,0.69,183.22,183.16,16.61397197]
[1755610270469,0.69,183.24,183.2,16.61397197]
[1755610270675,0.69,183.24,183.22,16.61397197]
[1755610270889,13.59559401,183.27,183.15,0.22]
[1755610270890,17.30397197,183.23,183.15,16.61397197]
[1755610271092,16.61397197,183.19,183.13,16.64397197]
[1755610271402,5.45585281,183.29,183.16,16.61397197]
[1755610271567,0.69,183.21,183.18,16.61397197]
[1755610271784,0.69,183.28,183.2,16.61397197]
[1755610271985,0.69,183.28,183.26,16.61397197]
[1755610272202,0.69,183.27,183.19,26.22]
[1755610272387,0.69,183.29,183.25,16.61397197]
[1755610272599,0.69,183.28,183.25,16.61397197]
[1755610272780,0.69,183.27,183.25,16.61397197]
[1755610272981,0.69,183.33,183.26,16.61397197]
[1755610273214,0.69,183.36,183.26,26.0]
[1755610273379,0.69,183.36,183.32,16.61397197]
[1755610273586,17.30397197,183.36,183.26,26.22]
[1755610273779,16.61397197,183.3,183.26,26.0]
[1755610274097,0.69,183.32,183.29,16.61397197]
[1755610274305,0.69,183.31,183.23,5.45750041]
[1755610274485,16.61397197,183.3,183.23,16.61397197]
[1755610274691,0.69,183.32,183.24,26.0]
[1755610274902,0.69,183.32,183.25,5.45702592]
[1755610275088,0.69,183.32,183.27,16.61397197]
[1755610275289,16.61397197,183.34,183.24,45.3206225]
[1755610275597,0.69,183.33,183.24,26.0]
[1755610275918,0.69,183.33,183.29,16.61397197]
[1755610276605,0.69,183.36,183.24,45.32060256]
[1755610276909,0.69,183.36,183.34,16.61397197]
[1755610277203,0.69,183.39,183.33,16.61397197]
[1755610277405,0.69,183.39,183.34,16.61397197]
[1755610277607,0.69,183.39,183.3,31.45539092]
[1755610277608,47.0,183.41,183.36,16.61397197]
[1755610277802,0.69,183.43,183.37,16.61397197]
[1755610278188,16.61397197,183.38,183.33,26.0]
[1755610278391,17.30397197,183.37,183.3,31.45539092]
[1755610278696,0.69,183.4,183.3,5.45539092]
[1755610278914,0.69,183.4,183.34,16.61397197]
[1755610279204,16.61397197,183.38,183.32,16.61397197]
[1755610279398,16.61397197,183.36,183.31,16.61397197]
[1755610279584,16.61397197,183.37,183.31,16.61397197]
[1755610279782,17.30397197,183.36,183.29,31.45582442]
[1755610279996,0.69,183.36,183.29,31.45582442]
[1755610280195,17.30397197,183.39,183.33,16.61397197]
[1755610280413,0.69,183.39,183.33,16.61397197]
[1755610280709,16.61397197,183.36,183.29,48.28979639]
[1755610281020,0.69,183.39,183.29,31.67582442]
[1755610281203,0.69,183.39,183.32,16.61397197]
[1755610281513,16.61397197,183.42,183.36,16.61397197]
[1755610281882,16.61397197,183.41,183.32,0.22]
[1755610282082,16.61397197,183.38,183.32,16.61397197]
[1755610282315,0.69,183.44,183.37,16.61397197]
[1755610282516,0.69,183.44,183.39,16.61397197]
[1755610282720,0.69,183.44,183.33,0.22]
[1755610282721,0.69,183.44,183.38,16.61397197]
[1755610282892,0.69,183.44,183.39,16.61397197]
[1755610283087,17.30397197,183.43,183.37,16.61397197]
[1755610283394,17.30397197,183.43,183.34,5.45434711]
[1755610283596,17.30397197,183.43,183.37,16.61397197]
[1755610284117,13.59559401,183.41,183.32,5.45466911]
[1755610284314,16.61397197,183.39,183.33,16.61397197]
[1755610284510,0.69,183.4,183.28,16.61397197]
[1755610284511,16.61397197,183.34,183.28,16.61397197]
[1755610284707,16.61397197,183.32,183.26,22.07070011]
[1755610284906,16.61397197,183.32,183.22,5.45791944]
[1755610285114,16.61397197,183.29,183.23,16.61397197]
[1755610285825,16.61397197,183.24,183.2,0.03]
[1755610286129,16.61397197,183.21,183.2,0.03]
[1755610286320,30.20956598,183.21,183.2,0.03]
[1755610286524,30.89956598,183.21,183.2,0.03]
[1755610286702,30.20956598,183.19,183.13,0.03]
[1755610286913,30.89956598,183.19,183.18,15.709268]
[1755610287117,36.35837923,183.19,183.18,14.369268]
[1755610287421,36.35837923,183.19,183.13,0.03]
[1755610287422,39.59559401,183.15,183.13,0.03]
[1755610287629,26.0,183.16,183.13,0.03]
[1755610287630,76.98956598,183.14,183.13,0.03]
[1755610287819,77.57956598,183.14,183.13,0.03]
[1755610288334,77.57956598,183.14,183.02,0.7]
[1755610288335,16.61397197,183.03,183.02,0.03]
[1755610288634,13.59559401,183.03,183.02,0.03]
[1755610288827,16.61397197,183.04,183.02,0.03]
[1755610289009,13.59559401,183.06,183.02,0.03]
[1755610289214,16.61397197,183.05,183.02,0.03]
[1755610289614,60.31559401,183.06,183.02,0.03]
[1755610289945,30.20956598,183.03,183.02,0.03]
[1755610290233,30.20956598,183.03,183.0,27.352404]
[1755610290234,13.59559401,183.02,183.0,27.352404]
[1755610290406,30.20956598,183.01,183.0,27.352404]
[1755610290949,30.76956598,183.01,183.0,27.352404]
[1755610291443,13.59559401,183.01,183.0,27.352404]
[1755610291612,60.27559401,183.02,183.0,27.352404]
[1755610291817,13.59559401,183.01,183.0,27.352404]
[1755610292021,30.20956598,183.01,183.0,27.352404]
[1755610292315,56.76956598,183.01,183.0,27.352404]
[1755610292536,40.15559401,183.01,183.0,27.252404]
[1755610292718,56.76956598,183.01,183.0,27.252404]
[1755610293063,19.0603735,182.99,182.98,0.03]
[1755610293220,76.84956598,182.99,182.98,0.03]
[1755610293415,82.77434547,182.99,182.98,0.03]
[1755610293616,77.30956598,182.99,182.98,0.03]
[1755610293834,46.66,182.99,182.98,0.03]
[1755610294140,77.32956598,182.99,182.98,0.03]
[1755610294344,16.61397197,183.0,182.98,0.03]
[1755610294543,46.66,182.99,182.98,0.03]
[1755610294835,63.27397197,182.99,182.98,0.03]
[1755610295216,46.66,182.99,182.98,0.03]
[1755610295433,63.27397197,182.99,182.98,0.03]
[1755610295643,54.93156755,183.14,182.98,0.03]
[1755610295644,0.46,183.06,182.98,0.7]
[1755610295842,16.61397197,182.99,182.98,0.03]
[1755610296043,63.23397197,182.99,182.98,0.03]
[1755610296345,46.62,182.99,182.98,0.03]
[1755610297039,16.61397197,183.01,182.98,0.7]
[1755610297040,46.54,183.01,182.98,0.7]
[1755610297252,46.54,183.01,182.98,17.31397197]
[1755610297455,46.54,183.01,182.99,17.28397197]
[1755610297620,46.54,183.01,183.0,17.28397197]
[1755610297818,46.54,183.01,183.0,0.67]
[1755610298019,46.5,183.05,183.0,17.28397197]
[1755610298224,46.48,183.06,183.01,0.72]
[1755610298433,0.46,183.14,183.02,0.72]
[1755610298646,0.46,183.14,183.06,16.61397197]
[1755610298849,46.46,183.13,183.07,16.61397197]
[1755610299149,63.07397197,183.13,183.07,22.07614651]
[1755610299340,16.61397197,183.12,183.08,0.72]
[1755610299645,16.61397197,183.1,183.06,0.72]
[1755610299824,16.61397197,183.11,183.06,0.72]
[1755610300144,16.61397197,183.11,183.07,0.72]
[1755610300343,16.61397197,183.08,183.02,0.72]
[1755610300537,16.61397197,183.07,183.02,0.72]
[1755610300737,16.61397197,183.07,182.98,26.03]
[1755610300738,16.61397197,183.04,182.98,6.21506451]
[1755610301047,16.61397197,182.99,182.98,0.03]
[1755610301224,26.0,183.07,182.98,0.03]
[1755610301225,46.56,183.01,182.98,0.03]
[1755610301427,16.61397197,183.0,182.98,0.03]
[1755610301627,46.56,183.01,182.98,0.03]
[1755610301628,16.61397197,182.99,182.98,0.03]
[1755610302922,46.56,183.01,182.98,0.03]
[1755610303127,16.61397197,182.99,182.98,0.03]
[1755610303425,30.20956598,182.99,182.98,0.03]
[1755610303621,16.61397197,182.99,182.98,0.03]
[1755610303845,36.13434547,182.99,182.98,0.03]
[1755610304034,13.59559401,182.98,182.95,0.03]
[1755610304224,76.68956598,182.97,182.95,0.03]
[1755610304425,77.11956598,182.97,182.95,0.03]
[1755610304644,39.59559401,182.96,182.95,0.03]
[1755610304945,56.60956598,182.96,182.95,0.03]
[1755610305248,30.60956598,182.96,182.95,0.03]
[1755610305569,36.07524153,182.96,182.95,0.03]
[1755610306232,30.60956598,182.96,182.95,0.03]
[1755610306654,30.20956598,182.96,182.95,0.03]
[1755610307564,46.28,182.96,182.95,0.03]
[1755610307847,46.28,182.96,182.95,0.75]
[1755610308060,46.28,182.96,182.95,0.03]
[1755610308252,62.89397197,182.96,182.95,0.03]
[1755610308930,46.28,182.96,182.95,0.75]
[1755610309734,46.28,182.96,182.95,6.2159743]
[1755610309928,46.28,182.96,182.95,0.75]
[1755610310130,46.28,182.96,182.95,6.2159743]
[1755610310358,16.61397197,183.02,182.95,22.82994627]
[1755610310541,0.06,183.07,182.96,0.72]
[1755610310741,46.2,183.04,182.96,0.72]
[1755610310951,46.2,183.04,182.97,16.61397197]
[1755610311151,62.81397197,183.04,182.98,17.33397197]
[1755610311353,26.06,183.07,182.95,19.16091007]
[1755610311354,46.32,183.06,183.01,16.61397197]
[1755610311652,0.06,183.07,183.04,16.61397197]
[1755610312056,55.93397197,183.17,183.07,26.0]
[1755610312256,16.61397197,183.19,183.13,16.61397197]
[1755610312444,46.3,183.16,183.11,0.72]
[1755610312634,46.28,183.16,183.13,16.61397197]
[1755610312840,46.28,183.19,183.14,0.72]
[1755610313035,46.28,183.19,183.15,0.72]
[1755610313251,46.28,183.19,183.16,0.72]
[1755610313671,2.84818643,183.25,183.17,17.33397197]
[1755610313841,16.61397197,183.23,183.17,0.72]
[1755610314042,16.61397197,183.22,183.17,0.72]
[1755610314365,72.74,183.24,183.16,22.07363289]
[1755610314562,72.74,183.24,183.13,14.37137277]
[1755610314563,16.61397197,183.19,183.13,16.61397197]
[1755610314738,46.56,183.18,183.14,16.61397197]